Workbook

Sheet A1.1 Summary
A1: EPCOR Natural Gas Limited Partnership
A2: REDA & PGTVA Account balances for input to rate rider calculation
C3: Balance | E3: Interest
B4: REDA | C4: 2017-09-30 | E4: Re-allocation
B5: IFRS | C5: ='A1.2 REDA'!AA29 -> 3685.58 | E5: =C5+C5/$C$14*$C$15 -> 3824.52507
B6: EB-2008-0346 - Cost Awards for DSM | C6: ='A1.2 REDA'!AA19 -> 1537.71 | E6: =C6+C6/$C$14*$C$15 -> 1595.681126
B7: EB 2010-0280 - Low Income | C7: ='A1.2 REDA'!AA56 -> 20838.05 | E7: 21623.63716
B8: EB 2014-0199 - QRAM Process | C8: ='A1.2 REDA'!AA89 -> 23085 | E8: 23955.29638
B9: EB-2014-0289 - Natural Gas Market Review | C9: ='A1.2 REDA'!AA99 -> 13802.46 | E9: 14322.80789
B10: EB-2010-0018 - Engineering Study (@ 50%) | C10: ='A1.2 REDA'!AA47 -> 9415.69 | E10: 9770.658202
B11: EB-2010-0108 - System Integrity Study | C11: ='A1.2 REDA'!AA80 -> 72515.51 | E11: 75249.31923
B12: Other REDA | C12: ='A1.2 REDA'!AA130 -> 4113 | E12: 4268.058654
B13: DSM Account | C13: ='A1.2 REDA'!AA104 -> 3532.03 | E13: 3665.186289
B14: Sub-total | C14: =SUM(C5:C13) -> 152525.03 | E14: =SUM(E5:E13) -> 158275.17
B15: Interest | C15: ='A1.2 REDA'!AA136 -> 5750.14 | E15: 0
B16: Total | C16: =C14+C15 -> 158275.17 | E16: =E14+E15 -> 158275.17
B19: PGTVA 1-5 | C19: ='A1.3 PGTVA'!AA20 -> 399098.4481
B20: Interest | C20: ='A1.3 PGTVA'!AA24 -> 29822.36
B21: Total | C21: =SUM(C19:C20) -> 428920.8081
B23: PGTVA 6 | C23: ='A1.3 PGTVA'!AA40 -> 500576.8591
B24: Interest | C24: ='A1.3 PGTVA'!AA43 -> 43734.54
B25: Total | C25: =SUM(C23:C24) -> 544311.3991
B30: =MID(CELL("filename",A2),FIND("]",CELL("filename",A2))+1,255) -> A1.1 Summary

Sheet A1.2 REDA
A1: EPCOR Natural Gas Limited Partnership
A2: REDA Account continuity
B5: Regulatory Expense Deferral Account (REDA) | C5: 2015-09-30 | D5: 2015-10-31 | E5: 2015-11-30 | F5: 2015-12-31 | G5: 2016-01-31 | H5: 2016-02-28 | I5: 2016-03-31 | J5: 2016-04-30 | K5: 2016-05-31 | L5: 2016-06-30 | M5: 2016-07-31 | N5: 2016-08-31 | O5: 2016-09-30 | P5: 2016-10-31 | Q5: 2016-11-30 | R5: 2016-12-31 | S5: 2017-01-31 | T5: 2017-02-28 | U5: 2017-03-31 | V5: 2017-04-30 | W5: 2017-05-31 | X5: 2017-06-30 | Y5: 2017-07-31 | Z5: 2017-08-31 | AA5: 2017-09-30
B6: Rate Riders REDA/PGTVA (Ride 2)
B7: PGTVA IGPC (167,115 + 950 = 168,065) | C7: =24009.29+24009.29+24009.29+24009.29+24009.29+24009.29+24009.29-167115-30.59-230-230-230-230 -> -0.56 | D7: =24009.29+24009.29+24009.29+24009.29+24009.29+24009.29+24009.29-167115-30.59-230-230-230-230 -> -0.56 | E7: -0.56 | F7: -0.56 | G7: -0.56 | H7: -0.56 | I7: -0.56 | J7: -0.56 | K7: -0.56 | L7: -0.56 | M7: -0.56 | N7: -0.56
B8: PGTVA/REDA | C8: =-19549.58-19612.08-19607.08-19528.08-19576.57-19564.07-19705.07+1822.5+59856+111123+156.26+952-31696.45-3358.92-176+29740.47 -> 31276.33 | D8: =-19549.58-19612.08-19607.08-19528.08-19576.57-19564.07-19705.07+1822.5+59856+111123+156.26+952-31696.45-3358.92-176+29740.47 -> 31276.33 | E8: 31276.33 | F8: 31276.33 | G8: 31276.33 | H8: 31276.33 | I8: 31276.33 | J8: 31276.33 | K8: 31276.33 | L8: 31276.33 | M8: 31276.33 | N8: 31276.33
B9: Payment | C9: 0 | D9: 0 | E9: 0 | F9: 0 | G9: 0 | H9: 0 | I9: 0 | J9: 0 | K9: -29740.47 | L9: -29740.47 | M9: -29740.47 | N9: -29740.47
B10: PGTVA (31,696)+REDA 172 ,801+int (2,427) = 138,678 | C10: =SUM(C7:C9) -> 31275.77 | D10: =SUM(D7:D9) -> 31275.77 | E10: 31275.77 | F10: 31275.77 | G10: 31275.77 | H10: 31275.77 | I10: 31275.77 | J10: 31275.77 | K10: 1535.3 | L10: 1535.3 | M10: 1535.3 | N10: 1535.3 | O10: 0 | P10: 0 | Q10: 0 | R10: 0 | S10: 0 | T10: 0 | U10: 0 | V10: 0 | W10: 0 | X10: 0 | Y10: 0 | Z10: 0 | AA10: 0
N11: Write off rate rider over rebated $1,535.30
B13: EB-2008-0346 - Cost Awards for Guidelines for DSM
B15: Ontario Energy Board Inv #CA1011Q2003 | C15: 1042.34 | D15: 1042.34 | E15: 1042.34 | F15: 1042.34 | G15: 1042.34 | H15: 1042.34 | I15: 1042.34 | J15: 1042.34 | K15: 1042.34 | L15: 1042.34 | M15: 1042.34 | N15: 1042.34 | O15: 1042.34 | P15: 1042.34 | Q15: 1042.34 | R15: 1042.34 | S15: 1042.34 | T15: 1042.34 | U15: 1042.34 | V15: 1042.34 | W15: 1042.34 | X15: 1042.34 | Y15: 1042.34 | Z15: 1042.34 | AA15: 1042.34
B16: Ontario Energy Board Inv #2011067 | C16: 83.35 | D16: 83.35 | E16: 83.35 | F16: 83.35 | G16: 83.35 | H16: 83.35 | I16: 83.35 | J16: 83.35 | K16: 83.35 | L16: 83.35 | M16: 83.35 | N16: 83.35 | O16: 83.35 | P16: 83.35 | Q16: 83.35 | R16: 83.35 | S16: 83.35 | T16: 83.35 | U16: 83.35 | V16: 83.35 | W16: 83.35 | X16: 83.35 | Y16: 83.35 | Z16: 83.35 | AA16: 83.35
B17: Ontario Energy Board Inv #CA1112Q4003 | C17: 412.02 | D17: 412.02 | E17: 412.02 | F17: 412.02 | G17: 412.02 | H17: 412.02 | I17: 412.02 | J17: 412.02 | K17: 412.02 | L17: 412.02 | M17: 412.02 | N17: 412.02 | O17: 412.02 | P17: 412.02 | Q17: 412.02 | R17: 412.02 | S17: 412.02 | T17: 412.02 | U17: 412.02 | V17: 412.02 | W17: 412.02 | X17: 412.02 | Y17: 412.02 | Z17: 412.02 | AA17: 412.02
B19: sub-total | C19: =SUM(C15:C18) -> 1537.71 | D19: =SUM(D15:D18) -> 1537.71 | E19: 1537.71 | F19: 1537.71 | G19: 1537.71 | H19: 1537.71 | I19: 1537.71 | J19: 1537.71 | K19: 1537.71 | L19: 1537.71 | M19: 1537.71 | N19: 1537.71 | O19: 1537.71 | P19: 1537.71 | Q19: 1537.71 | R19: 1537.71 | S19: 1537.71 | T19: 1537.71 | U19: 1537.71 | V19: 1537.71 | W19: 1537.71 | X19: 1537.71 | Y19: 1537.71 | Z19: 1537.71 | AA19: 1537.71
B22: IFRS Matters
B23: Ogilvy Renault Inv #931085 | C23: 280 | D23: 280 | E23: 280 | F23: 280 | G23: 280 | H23: 280 | I23: 280 | J23: 280 | K23: 280 | L23: 280 | M23: 280 | N23: 280 | O23: 280 | P23: 280 | Q23: 280 | R23: 280 | S23: 280 | T23: 280 | U23: 280 | V23: 280 | W23: 280 | X23: 280 | Y23: 280 | Z23: 280 | AA23: 280
B24: Ogilvy Renault Inv #937256 | C24: 300 | D24: 300 | E24: 300 | F24: 300 | G24: 300 | H24: 300 | I24: 300 | J24: 300 | K24: 300 | L24: 300 | M24: 300 | N24: 300 | O24: 300 | P24: 300 | Q24: 300 | R24: 300 | S24: 300 | T24: 300 | U24: 300 | V24: 300 | W24: 300 | X24: 300 | Y24: 300 | Z24: 300 | AA24: 300
B25: Ontario Energy Board | C25: 423.83 | D25: 423.83 | E25: 423.83 | F25: 423.83 | G25: 423.83 | H25: 423.83 | I25: 423.83 | J25: 423.83 | K25: 423.83 | L25: 423.83 | M25: 423.83 | N25: 423.83 | O25: 423.83 | P25: 423.83 | Q25: 423.83 | R25: 423.83 | S25: 423.83 | T25: 423.83 | U25: 423.83 | V25: 423.83 | W25: 423.83 | X25: 423.83 | Y25: 423.83 | Z25: 423.83 | AA25: 423.83
B26: Ogilvy Renault Inv #904962 | C26: 1891.75 | D26: 1891.75 | E26: 1891.75 | F26: 1891.75 | G26: 1891.75 | H26: 1891.75 | I26: 1891.75 | J26: 1891.75 | K26: 1891.75 | L26: 1891.75 | M26: 1891.75 | N26: 1891.75 | O26: 1891.75 | P26: 1891.75 | Q26: 1891.75 | R26: 1891.75 | S26: 1891.75 | T26: 1891.75 | U26: 1891.75 | V26: 1891.75 | W26: 1891.75 | X26: 1891.75 | Y26: 1891.75 | Z26: 1891.75 | AA26: 1891.75
B27: Ogilvy Renault Inv #910519 | C27: 790 | D27: 790 | E27: 790 | F27: 790 | G27: 790 | H27: 790 | I27: 790 | J27: 790 | K27: 790 | L27: 790 | M27: 790 | N27: 790 | O27: 790 | P27: 790 | Q27: 790 | R27: 790 | S27: 790 | T27: 790 | U27: 790 | V27: 790 | W27: 790 | X27: 790 | Y27: 790 | Z27: 790 | AA27: 790
B29: sub-total | C29: =SUM(C23:C28) -> 3685.58 | D29: =SUM(D23:D28) -> 3685.58 | E29: 3685.58 | F29: 3685.58 | G29: 3685.58 | H29: 3685.58 | I29: 3685.58 | J29: 3685.58 | K29: 3685.58 | L29: 3685.58 | M29: 3685.58 | N29: 3685.58 | O29: 3685.58 | P29: 3685.58 | Q29: 3685.58 | R29: 3685.58 | S29: 3685.58 | T29: 3685.58 | U29: 3685.58 | V29: 3685.58 | W29: 3685.58 | X29: 3685.58 | Y29: 3685.58 | Z29: 3685.58 | AA29: 3685.58
B31: Eng. Study Terms of Reference
B32: MIG Engineering | C32: 191.36 | D32: 191.36 | E32: 191.36 | F32: 191.36 | G32: 191.36 | H32: 191.36 | I32: 191.36 | J32: 191.36 | K32: 191.36 | L32: 191.36 | M32: 191.36 | N32: 191.36 | O32: 191.36 | P32: 191.36 | Q32: 191.36 | R32: 191.36 | S32: 191.36 | T32: 191.36 | U32: 191.36 | V32: 191.36 | W32: 191.36 | X32: 191.36 | Y32: 191.36 | Z32: 191.36 | AA32: 191.36
B33: MIG Engineering - Inv #26931 | C33: 1108.46 | D33: 1108.46 | E33: 1108.46 | F33: 1108.46 | G33: 1108.46 | H33: 1108.46 | I33: 1108.46 | J33: 1108.46 | K33: 1108.46 | L33: 1108.46 | M33: 1108.46 | N33: 1108.46 | O33: 1108.46 | P33: 1108.46 | Q33: 1108.46 | R33: 1108.46 | S33: 1108.46 | T33: 1108.46 | U33: 1108.46 | V33: 1108.46 | W33: 1108.46 | X33: 1108.46 | Y33: 1108.46 | Z33: 1108.46 | AA33: 1108.46
B34: MIG Engineering - Inv #26942 | C34: 514.01 | D34: 514.01 | E34: 514.01 | F34: 514.01 | G34: 514.01 | H34: 514.01 | I34: 514.01 | J34: 514.01 | K34: 514.01 | L34: 514.01 | M34: 514.01 | N34: 514.01 | O34: 514.01 | P34: 514.01 | Q34: 514.01 | R34: 514.01 | S34: 514.01 | T34: 514.01 | U34: 514.01 | V34: 514.01 | W34: 514.01 | X34: 514.01 | Y34: 514.01 | Z34: 514.01 | AA34: 514.01
B35: MIG Engineering - Inv #27025 | C35: 577.96 | D35: 577.96 | E35: 577.96 | F35: 577.96 | G35: 577.96 | H35: 577.96 | I35: 577.96 | J35: 577.96 | K35: 577.96 | L35: 577.96 | M35: 577.96 | N35: 577.96 | O35: 577.96 | P35: 577.96 | Q35: 577.96 | R35: 577.96 | S35: 577.96 | T35: 577.96 | U35: 577.96 | V35: 577.96 | W35: 577.96 | X35: 577.96 | Y35: 577.96 | Z35: 577.96 | AA35: 577.96
B36: MIG Engineering - Inv #27126 | C36: 828.4 | D36: 828.4 | E36: 828.4 | F36: 828.4 | G36: 828.4 | H36: 828.4 | I36: 828.4 | J36: 828.4 | K36: 828.4 | L36: 828.4 | M36: 828.4 | N36: 828.4 | O36: 828.4 | P36: 828.4 | Q36: 828.4 | R36: 828.4 | S36: 828.4 | T36: 828.4 | U36: 828.4 | V36: 828.4 | W36: 828.4 | X36: 828.4 | Y36: 828.4 | Z36: 828.4 | AA36: 828.4
B37: Aecon Utility - Inv #1620 | C37: 4000 | D37: 4000 | E37: 4000 | F37: 4000 | G37: 4000 | H37: 4000 | I37: 4000 | J37: 4000 | K37: 4000 | L37: 4000 | M37: 4000 | N37: 4000 | O37: 4000 | P37: 4000 | Q37: 4000 | R37: 4000 | S37: 4000 | T37: 4000 | U37: 4000 | V37: 4000 | W37: 4000 | X37: 4000 | Y37: 4000 | Z37: 4000 | AA37: 4000
B38: MIG Engineering - Inv #27164 | C38: 1772.57 | D38: 1772.57 | E38: 1772.57 | F38: 1772.57 | G38: 1772.57 | H38: 1772.57 | I38: 1772.57 | J38: 1772.57 | K38: 1772.57 | L38: 1772.57 | M38: 1772.57 | N38: 1772.57 | O38: 1772.57 | P38: 1772.57 | Q38: 1772.57 | R38: 1772.57 | S38: 1772.57 | T38: 1772.57 | U38: 1772.57 | V38: 1772.57 | W38: 1772.57 | X38: 1772.57 | Y38: 1772.57 | Z38: 1772.57 | AA38: 1772.57
B39: Aecon Utility - Inv #1671 | C39: 3880 | D39: 3880 | E39: 3880 | F39: 3880 | G39: 3880 | H39: 3880 | I39: 3880 | J39: 3880 | K39: 3880 | L39: 3880 | M39: 3880 | N39: 3880 | O39: 3880 | P39: 3880 | Q39: 3880 | R39: 3880 | S39: 3880 | T39: 3880 | U39: 3880 | V39: 3880 | W39: 3880 | X39: 3880 | Y39: 3880 | Z39: 3880 | AA39: 3880
B40: Aecon Utility - Inv #1707 | C40: 150 | D40: 150 | E40: 150 | F40: 150 | G40: 150 | H40: 150 | I40: 150 | J40: 150 | K40: 150 | L40: 150 | M40: 150 | N40: 150 | O40: 150 | P40: 150 | Q40: 150 | R40: 150 | S40: 150 | T40: 150 | U40: 150 | V40: 150 | W40: 150 | X40: 150 | Y40: 150 | Z40: 150 | AA40: 150
B41: Aecon Utility - Inv #1751 | C41: 550 | D41: 550 | E41: 550 | F41: 550 | G41: 550 | H41: 550 | I41: 550 | J41: 550 | K41: 550 | L41: 550 | M41: 550 | N41: 550 | O41: 550 | P41: 550 | Q41: 550 | R41: 550 | S41: 550 | T41: 550 | U41: 550 | V41: 550 | W41: 550 | X41: 550 | Y41: 550 | Z41: 550 | AA41: 550
B42: MIG Engineering - Inv #27253 | C42: 427.94 | D42: 427.94 | E42: 427.94 | F42: 427.94 | G42: 427.94 | H42: 427.94 | I42: 427.94 | J42: 427.94 | K42: 427.94 | L42: 427.94 | M42: 427.94 | N42: 427.94 | O42: 427.94 | P42: 427.94 | Q42: 427.94 | R42: 427.94 | S42: 427.94 | T42: 427.94 | U42: 427.94 | V42: 427.94 | W42: 427.94 | X42: 427.94 | Y42: 427.94 | Z42: 427.94 | AA42: 427.94
B43: MIG Enginieering - Inv #27302 | C43: 380.68 | D43: 380.68 | E43: 380.68 | F43: 380.68 | G43: 380.68 | H43: 380.68 | I43: 380.68 | J43: 380.68 | K43: 380.68 | L43: 380.68 | M43: 380.68 | N43: 380.68 | O43: 380.68 | P43: 380.68 | Q43: 380.68 | R43: 380.68 | S43: 380.68 | T43: 380.68 | U43: 380.68 | V43: 380.68 | W43: 380.68 | X43: 380.68 | Y43: 380.68 | Z43: 380.68 | AA43: 380.68
B44: Aecon Utility - Inv #1917 | C44: 4450 | D44: 4450 | E44: 4450 | F44: 4450 | G44: 4450 | H44: 4450 | I44: 4450 | J44: 4450 | K44: 4450 | L44: 4450 | M44: 4450 | N44: 4450 | O44: 4450 | P44: 4450 | Q44: 4450 | R44: 4450 | S44: 4450 | T44: 4450 | U44: 4450 | V44: 4450 | W44: 4450 | X44: 4450 | Y44: 4450 | Z44: 4450 | AA44: 4450
B45: Reallocate 50% | C45: -9415.69 | D45: -9415.69 | E45: -9415.69 | F45: -9415.69 | G45: -9415.69 | H45: -9415.69 | I45: -9415.69 | J45: -9415.69 | K45: -9415.69 | L45: -9415.69 | M45: -9415.69 | N45: -9415.69 | O45: -9415.69 | P45: -9415.69 | Q45: -9415.69 | R45: -9415.69 | S45: -9415.69 | T45: -9415.69 | U45: -9415.69 | V45: -9415.69 | W45: -9415.69 | X45: -9415.69 | Y45: -9415.69 | Z45: -9415.69 | AA45: -9415.69
B47: sub-total | C47: =SUM(C32:C46) -> 9415.69 | D47: =SUM(D32:D46) -> 9415.69 | E47: 9415.69 | F47: 9415.69 | G47: 9415.69 | H47: 9415.69 | I47: 9415.69 | J47: 9415.69 | K47: 9415.69 | L47: 9415.69 | M47: 9415.69 | N47: 9415.69 | O47: 9415.69 | P47: 9415.69 | Q47: 9415.69 | R47: 9415.69 | S47: 9415.69 | T47: 9415.69 | U47: 9415.69 | V47: 9415.69 | W47: 9415.69 | X47: 9415.69 | Y47: 9415.69 | Z47: 9415.69 | AA47: 9415.69
B49: Low Income - EB 2010-0280
B50: Norton Rose - Inv #1228144 | C50: 390 | D50: 390 | E50: 390 | F50: 390 | G50: 390 | H50: 390 | I50: 390 | J50: 390 | K50: 390 | L50: 390 | M50: 390 | N50: 390 | O50: 390 | P50: 390 | Q50: 390 | R50: 390 | S50: 390 | T50: 390 | U50: 390 | V50: 390 | W50: 390 | X50: 390 | Y50: 390 | Z50: 390 | AA50: 390
B51: Progressive Impact - 1060 | C51: 1126.25 | D51: 1126.25 | E51: 1126.25 | F51: 1126.25 | G51: 1126.25 | H51: 1126.25 | I51: 1126.25 | J51: 1126.25 | K51: 1126.25 | L51: 1126.25 | M51: 1126.25 | N51: 1126.25 | O51: 1126.25 | P51: 1126.25 | Q51: 1126.25 | R51: 1126.25 | S51: 1126.25 | T51: 1126.25 | U51: 1126.25 | V51: 1126.25 | W51: 1126.25 | X51: 1126.25 | Y51: 1126.25 | Z51: 1126.25 | AA51: 1126.25
B52: Norton Rose - Inv #1237457 | C52: 19256.64 | D52: 19256.64 | E52: 19256.64 | F52: 19256.64 | G52: 19256.64 | H52: 19256.64 | I52: 19256.64 | J52: 19256.64 | K52: 19256.64 | L52: 19256.64 | M52: 19256.64 | N52: 19256.64 | O52: 19256.64 | P52: 19256.64 | Q52: 19256.64 | R52: 19256.64 | S52: 19256.64 | T52: 19256.64 | U52: 19256.64 | V52: 19256.64 | W52: 19256.64 | X52: 19256.64 | Y52: 19256.64 | Z52: 19256.64 | AA52: 19256.64
B53: Ontario Energy Board - CA1314Q1080 | C53: 54.5 | D53: 54.5 | E53: 54.5 | F53: 54.5 | G53: 54.5 | H53: 54.5 | I53: 54.5 | J53: 54.5 | K53: 54.5 | L53: 54.5 | M53: 54.5 | N53: 54.5 | O53: 54.5 | P53: 54.5 | Q53: 54.5 | R53: 54.5 | S53: 54.5 | T53: 54.5 | U53: 54.5 | V53: 54.5 | W53: 54.5 | X53: 54.5 | Y53: 54.5 | Z53: 54.5 | AA53: 54.5
B54: Ontario Energy Board - CA1314Q2003 | C54: 10.66 | D54: 10.66 | E54: 10.66 | F54: 10.66 | G54: 10.66 | H54: 10.66 | I54: 10.66 | J54: 10.66 | K54: 10.66 | L54: 10.66 | M54: 10.66 | N54: 10.66 | O54: 10.66 | P54: 10.66 | Q54: 10.66 | R54: 10.66 | S54: 10.66 | T54: 10.66 | U54: 10.66 | V54: 10.66 | W54: 10.66 | X54: 10.66 | Y54: 10.66 | Z54: 10.66 | AA54: 10.66
B56: sub-total | C56: =SUM(C50:C55) -> 20838.05 | D56: =SUM(D50:D55) -> 20838.05 | E56: 20838.05 | F56: 20838.05 | G56: 20838.05 | H56: 20838.05 | I56: 20838.05 | J56: 20838.05 | K56: 20838.05 | L56: 20838.05 | M56: 20838.05 | N56: 20838.05 | O56: 20838.05 | P56: 20838.05 | Q56: 20838.05 | R56: 20838.05 | S56: 20838.05 | T56: 20838.05 | U56: 20838.05 | V56: 20838.05 | W56: 20838.05 | X56: 20838.05 | Y56: 20838.05 | Z56: 20838.05 | AA56: 20838.05
B58: Steering Committee (System Integrety Study)
B59: Osler Hoskin & Harcourt - Inv #11582938 | C59: 532 | D59: 532 | E59: 532 | F59: 532 | G59: 532 | H59: 532 | I59: 532 | J59: 532 | K59: 532 | L59: 532 | M59: 532 | N59: 532 | O59: 532 | P59: 532 | Q59: 532 | R59: 532 | S59: 532 | T59: 532 | U59: 532 | V59: 532 | W59: 532 | X59: 532 | Y59: 532 | Z59: 532 | AA59: 532
B60: Osler Hoskin & Harcourt - Inv #11576514 | C60: 3876 | D60: 3876 | E60: 3876 | F60: 3876 | G60: 3876 | H60: 3876 | I60: 3876 | J60: 3876 | K60: 3876 | L60: 3876 | M60: 3876 | N60: 3876 | O60: 3876 | P60: 3876 | Q60: 3876 | R60: 3876 | S60: 3876 | T60: 3876 | U60: 3876 | V60: 3876 | W60: 3876 | X60: 3876 | Y60: 3876 | Z60: 3876 | AA60: 3876
B61: Osler Hoskin & Harcourt - Inv #11657342 | C61: 390 | D61: 390 | E61: 390 | F61: 390 | G61: 390 | H61: 390 | I61: 390 | J61: 390 | K61: 390 | L61: 390 | M61: 390 | N61: 390 | O61: 390 | P61: 390 | Q61: 390 | R61: 390 | S61: 390 | T61: 390 | U61: 390 | V61: 390 | W61: 390 | X61: 390 | Y61: 390 | Z61: 390 | AA61: 390
B62: SNC-Lavalin - Inv #1162427 | C62: 1465.74 | D62: 1465.74 | E62: 1465.74 | F62: 1465.74 | G62: 1465.74 | H62: 1465.74 | I62: 1465.74 | J62: 1465.74 | K62: 1465.74 | L62: 1465.74 | M62: 1465.74 | N62: 1465.74 | O62: 1465.74 | P62: 1465.74 | Q62: 1465.74 | R62: 1465.74 | S62: 1465.74 | T62: 1465.74 | U62: 1465.74 | V62: 1465.74 | W62: 1465.74 | X62: 1465.74 | Y62: 1465.74 | Z62: 1465.74 | AA62: 1465.74
B63: SNC-Lavalin - Inv #1154174 | C63: 8625.28 | D63: 8625.28 | E63: 8625.28 | F63: 8625.28 | G63: 8625.28 | H63: 8625.28 | I63: 8625.28 | J63: 8625.28 | K63: 8625.28 | L63: 8625.28 | M63: 8625.28 | N63: 8625.28 | O63: 8625.28 | P63: 8625.28 | Q63: 8625.28 | R63: 8625.28 | S63: 8625.28 | T63: 8625.28 | U63: 8625.28 | V63: 8625.28 | W63: 8625.28 | X63: 8625.28 | Y63: 8625.28 | Z63: 8625.28 | AA63: 8625.28
B64: Walsh, Phil Inv #001-14 | C64: 17600 | D64: 17600 | E64: 17600 | F64: 17600 | G64: 17600 | H64: 17600 | I64: 17600 | J64: 17600 | K64: 17600 | L64: 17600 | M64: 17600 | N64: 17600 | O64: 17600 | P64: 17600 | Q64: 17600 | R64: 17600 | S64: 17600 | T64: 17600 | U64: 17600 | V64: 17600 | W64: 17600 | X64: 17600 | Y64: 17600 | Z64: 17600 | AA64: 17600
B65: SNC-Lavalin - Inv #1175490 | C65: 2868.45 | D65: 2868.45 | E65: 2868.45 | F65: 2868.45 | G65: 2868.45 | H65: 2868.45 | I65: 2868.45 | J65: 2868.45 | K65: 2868.45 | L65: 2868.45 | M65: 2868.45 | N65: 2868.45 | O65: 2868.45 | P65: 2868.45 | Q65: 2868.45 | R65: 2868.45 | S65: 2868.45 | T65: 2868.45 | U65: 2868.45 | V65: 2868.45 | W65: 2868.45 | X65: 2868.45 | Y65: 2868.45 | Z65: 2868.45 | AA65: 2868.45
B66: SNC-Lavalin - Inv #1164160 | C66: 2025.72 | D66: 2025.72 | E66: 2025.72 | F66: 2025.72 | G66: 2025.72 | H66: 2025.72 | I66: 2025.72 | J66: 2025.72 | K66: 2025.72 | L66: 2025.72 | M66: 2025.72 | N66: 2025.72 | O66: 2025.72 | P66: 2025.72 | Q66: 2025.72 | R66: 2025.72 | S66: 2025.72 | T66: 2025.72 | U66: 2025.72 | V66: 2025.72 | W66: 2025.72 | X66: 2025.72 | Y66: 2025.72 | Z66: 2025.72 | AA66: 2025.72
B67: SNC-Lavalin - Inv #1179246 | C67: 6664.31 | D67: 6664.31 | E67: 6664.31 | F67: 6664.31 | G67: 6664.31 | H67: 6664.31 | I67: 6664.31 | J67: 6664.31 | K67: 6664.31 | L67: 6664.31 | M67: 6664.31 | N67: 6664.31 | O67: 6664.31 | P67: 6664.31 | Q67: 6664.31 | R67: 6664.31 | S67: 6664.31 | T67: 6664.31 | U67: 6664.31 | V67: 6664.31 | W67: 6664.31 | X67: 6664.31 | Y67: 6664.31 | Z67: 6664.31 | AA67: 6664.31
B68: SNC-Lavalin - Inv #1184110 | C68: 2891.9 | D68: 2891.9 | E68: 2891.9 | F68: 2891.9 | G68: 2891.9 | H68: 2891.9 | I68: 2891.9 | J68: 2891.9 | K68: 2891.9 | L68: 2891.9 | M68: 2891.9 | N68: 2891.9 | O68: 2891.9 | P68: 2891.9 | Q68: 2891.9 | R68: 2891.9 | S68: 2891.9 | T68: 2891.9 | U68: 2891.9 | V68: 2891.9 | W68: 2891.9 | X68: 2891.9 | Y68: 2891.9 | Z68: 2891.9 | AA68: 2891.9
B69: SNC-Lavalin - Inv #1192504 | C69: 2619.35 | D69: 2619.35 | E69: 2619.35 | F69: 2619.35 | G69: 2619.35 | H69: 2619.35 | I69: 2619.35 | J69: 2619.35 | K69: 2619.35 | L69: 2619.35 | M69: 2619.35 | N69: 2619.35 | O69: 2619.35 | P69: 2619.35 | Q69: 2619.35 | R69: 2619.35 | S69: 2619.35 | T69: 2619.35 | U69: 2619.35 | V69: 2619.35 | W69: 2619.35 | X69: 2619.35 | Y69: 2619.35 | Z69: 2619.35 | AA69: 2619.35
B70: SNC-Lavalin - Inv #1200425 | C70: 4922.61 | D70: 4922.61 | E70: 4922.61 | F70: 4922.61 | G70: 4922.61 | H70: 4922.61 | I70: 4922.61 | J70: 4922.61 | K70: 4922.61 | L70: 4922.61 | M70: 4922.61 | N70: 4922.61 | O70: 4922.61 | P70: 4922.61 | Q70: 4922.61 | R70: 4922.61 | S70: 4922.61 | T70: 4922.61 | U70: 4922.61 | V70: 4922.61 | W70: 4922.61 | X70: 4922.61 | Y70: 4922.61 | Z70: 4922.61 | AA70: 4922.61
B71: SNC-Lavalin - Inv #1202608 | C71: 2921.78 | D71: 2921.78 | E71: 2921.78 | F71: 2921.78 | G71: 2921.78 | H71: 2921.78 | I71: 2921.78 | J71: 2921.78 | K71: 2921.78 | L71: 2921.78 | M71: 2921.78 | N71: 2921.78 | O71: 2921.78 | P71: 2921.78 | Q71: 2921.78 | R71: 2921.78 | S71: 2921.78 | T71: 2921.78 | U71: 2921.78 | V71: 2921.78 | W71: 2921.78 | X71: 2921.78 | Y71: 2921.78 | Z71: 2921.78 | AA71: 2921.78
B72: SNC-Lavalin - Inv #1171542 | C72: 1186.26 | D72: 1186.26 | E72: 1186.26 | F72: 1186.26 | G72: 1186.26 | H72: 1186.26 | I72: 1186.26 | J72: 1186.26 | K72: 1186.26 | L72: 1186.26 | M72: 1186.26 | N72: 1186.26 | O72: 1186.26 | P72: 1186.26 | Q72: 1186.26 | R72: 1186.26 | S72: 1186.26 | T72: 1186.26 | U72: 1186.26 | V72: 1186.26 | W72: 1186.26 | X72: 1186.26 | Y72: 1186.26 | Z72: 1186.26 | AA72: 1186.26
B73: SNC-Lavalin - Inv #1207283 | C73: 1162 | D73: 1162 | E73: 1162 | F73: 1162 | G73: 1162 | H73: 1162 | I73: 1162 | J73: 1162 | K73: 1162 | L73: 1162 | M73: 1162 | N73: 1162 | O73: 1162 | P73: 1162 | Q73: 1162 | R73: 1162 | S73: 1162 | T73: 1162 | U73: 1162 | V73: 1162 | W73: 1162 | X73: 1162 | Y73: 1162 | Z73: 1162 | AA73: 1162
B74: SNC-Lavalin - Inv #1228955 | C74: 0 | D74: 0 | E74: 0 | F74: 0 | G74: 1613.7 | H74: 1613.7 | I74: 1613.7 | J74: 1613.7 | K74: 1613.7 | L74: 1613.7 | M74: 1613.7 | N74: 1613.7 | O74: 1613.7 | P74: 1613.7 | Q74: 1613.7 | R74: 1613.7 | S74: 1613.7 | T74: 1613.7 | U74: 1613.7 | V74: 1613.7 | W74: 1613.7 | X74: 1613.7 | Y74: 1613.7 | Z74: 1613.7 | AA74: 1613.7
B75: SNC-Lavalin - Inv #1232433 | C75: 0 | D75: 0 | E75: 0 | F75: 0 | G75: 0 | H75: 1945.05 | I75: 1945.05 | J75: 1945.05 | K75: 1945.05 | L75: 1945.05 | M75: 1945.05 | N75: 1945.05 | O75: 1945.05 | P75: 1945.05 | Q75: 1945.05 | R75: 1945.05 | S75: 1945.05 | T75: 1945.05 | U75: 1945.05 | V75: 1945.05 | W75: 1945.05 | X75: 1945.05 | Y75: 1945.05 | Z75: 1945.05 | AA75: 1945.05
B76: SNC-Lavalin - Inv #1268298 | C76: 0 | D76: 0 | E76: 0 | F76: 0 | G76: 0 | H76: 0 | I76: 0 | J76: 0 | K76: 0 | L76: 0 | M76: 0 | N76: 0 | O76: 0 | P76: 219 | Q76: 219 | R76: 219 | S76: 219 | T76: 219 | U76: 219 | V76: 219 | W76: 219 | X76: 219 | Y76: 219 | Z76: 219 | AA76: 219
B77: SNC-Lavalin - Inv #1248789 | C77: 0 | D77: 0 | E77: 0 | F77: 0 | G77: 0 | H77: 0 | I77: 0 | J77: 0 | K77: 0 | L77: 0 | M77: 0 | N77: 0 | O77: 3780.46 | P77: 3780.46 | Q77: 3780.46 | R77: 3780.46 | S77: 3780.46 | T77: 3780.46 | U77: 3780.46 | V77: 3780.46 | W77: 3780.46 | X77: 3780.46 | Y77: 3780.46 | Z77: 3780.46 | AA77: 3780.46
B78: SNC-Lavalin - Inv #1240539 | C78: 0 | D78: 0 | E78: 0 | F78: 0 | G78: 0 | H78: 0 | I78: 0 | J78: 0 | K78: 0 | L78: 0 | M78: 0 | N78: 0 | O78: 5205.9 | P78: 5205.9 | Q78: 5205.9 | R78: 5205.9 | S78: 5205.9 | T78: 5205.9 | U78: 5205.9 | V78: 5205.9 | W78: 5205.9 | X78: 5205.9 | Y78: 5205.9 | Z78: 5205.9 | AA78: 5205.9
B80: sub-total | C80: =SUM(C59:C79) -> 59751.4 | D80: =SUM(D59:D79) -> 59751.4 | E80: 59751.4 | F80: 59751.4 | G80: 61365.1 | H80: 63310.15 | I80: 63310.15 | J80: 63310.15 | K80: 63310.15 | L80: 63310.15 | M80: 63310.15 | N80: =SUM(N59:N79) -> 63310.15 | O80: 72296.51 | P80: 72515.51 | Q80: 72515.51 | R80: 72515.51 | S80: 72515.51 | T80: 72515.51 | U80: 72515.51 | V80: 72515.51 | W80: 72515.51 | X80: 72515.51 | Y80: 72515.51 | Z80: 72515.51 | AA80: 72515.51
B82: 2014-0199 - Review of QRAM Process
B83: Fasken Martineau DuMoulin - Inv #834063 | C83: 14820 | D83: 14820 | E83: 14820 | F83: 14820 | G83: 14820 | H83: 14820 | I83: 14820 | J83: 14820 | K83: 14820 | L83: 14820 | M83: 14820 | N83: 14820 | O83: 14820 | P83: 14820 | Q83: 14820 | R83: 14820 | S83: 14820 | T83: 14820 | U83: 14820 | V83: 14820 | W83: 14820 | X83: 14820 | Y83: 14820 | Z83: 14820 | AA83: 14820
B84: Fasken Martineau DuMoulin - Inv #839124 | C84: 1330 | D84: 1330 | E84: 1330 | F84: 1330 | G84: 1330 | H84: 1330 | I84: 1330 | J84: 1330 | K84: 1330 | L84: 1330 | M84: 1330 | N84: 1330 | O84: 1330 | P84: 1330 | Q84: 1330 | R84: 1330 | S84: 1330 | T84: 1330 | U84: 1330 | V84: 1330 | W84: 1330 | X84: 1330 | Y84: 1330 | Z84: 1330 | AA84: 1330
B85: Fasken Martineau DuMoulin - Inv #849444 | C85: 5700 | D85: 5700 | E85: 5700 | F85: 5700 | G85: 5700 | H85: 5700 | I85: 5700 | J85: 5700 | K85: 5700 | L85: 5700 | M85: 5700 | N85: 5700 | O85: 5700 | P85: 5700 | Q85: 5700 | R85: 5700 | S85: 5700 | T85: 5700 | U85: 5700 | V85: 5700 | W85: 5700 | X85: 5700 | Y85: 5700 | Z85: 5700 | AA85: 5700
B86: Fasken Martineau DuMoulin - Inv #853098 | C86: 1140 | D86: 1140 | E86: 1140 | F86: 1140 | G86: 1140 | H86: 1140 | I86: 1140 | J86: 1140 | K86: 1140 | L86: 1140 | M86: 1140 | N86: 1140 | O86: 1140 | P86: 1140 | Q86: 1140 | R86: 1140 | S86: 1140 | T86: 1140 | U86: 1140 | V86: 1140 | W86: 1140 | X86: 1140 | Y86: 1140 | Z86: 1140 | AA86: 1140
B87: Fasken Martineau DuMoulin - Inv #816984 | C87: 95 | D87: 95 | E87: 95 | F87: 95 | G87: 95 | H87: 95 | I87: 95 | J87: 95 | K87: 95 | L87: 95 | M87: 95 | N87: 95 | O87: 95 | P87: 95 | Q87: 95 | R87: 95 | S87: 95 | T87: 95 | U87: 95 | V87: 95 | W87: 95 | X87: 95 | Y87: 95 | Z87: 95 | AA87: 95
B89: sub-total | C89: =SUM(C83:C88) -> 23085 | D89: =SUM(D83:D88) -> 23085 | E89: 23085 | F89: 23085 | G89: 23085 | H89: 23085 | I89: 23085 | J89: 23085 | K89: 23085 | L89: 23085 | M89: 23085 | N89: 23085 | O89: 23085 | P89: 23085 | Q89: 23085 | R89: 23085 | S89: 23085 | T89: 23085 | U89: 23085 | V89: 23085 | W89: 23085 | X89: 23085 | Y89: 23085 | Z89: 23085 | AA89: 23085
B91: 2014-0289 Natural Gas Market Review
B92: Fasken Martineau DuMoulin - Inv #864049 | C92: 1995 | D92: 1995 | E92: 1995 | F92: 1995 | G92: 1995 | H92: 1995 | I92: 1995 | J92: 1995 | K92: 1995 | L92: 1995 | M92: 1995 | N92: 1995 | O92: 1995 | P92: 1995 | Q92: 1995 | R92: 1995 | S92: 1995 | T92: 1995 | U92: 1995 | V92: 1995 | W92: 1995 | X92: 1995 | Y92: 1995 | Z92: 1995 | AA92: 1995
B93: Fasken Martineau DuMoulin - Inv #883674 | C93: 7885 | D93: 7885 | E93: 7885 | F93: 7885 | G93: 7885 | H93: 7885 | I93: 7885 | J93: 7885 | K93: 7885 | L93: 7885 | M93: 7885 | N93: 7885 | O93: 7885 | P93: 7885 | Q93: 7885 | R93: 7885 | S93: 7885 | T93: 7885 | U93: 7885 | V93: 7885 | W93: 7885 | X93: 7885 | Y93: 7885 | Z93: 7885 | AA93: 7885
B94: Fasken Martineau Dumoulin - Inv #887975 | C94: 2700 | D94: 2700 | E94: 2700 | F94: 2700 | G94: 2700 | H94: 2700 | I94: 2700 | J94: 2700 | K94: 2700 | L94: 2700 | M94: 2700 | N94: 2700 | O94: 2700 | P94: 2700 | Q94: 2700 | R94: 2700 | S94: 2700 | T94: 2700 | U94: 2700 | V94: 2700 | W94: 2700 | X94: 2700 | Y94: 2700 | Z94: 2700 | AA94: 2700
B95: Fasken Martineau DuMoulin LLP - Inv #913514 | C95: 180 | D95: 180 | E95: 180 | F95: 180 | G95: 180 | H95: 180 | I95: 180 | J95: 180 | K95: 180 | L95: 180 | M95: 180 | N95: 180 | O95: 180 | P95: 180 | Q95: 180 | R95: 180 | S95: 180 | T95: 180 | U95: 180 | V95: 180 | W95: 180 | X95: 180 | Y95: 180 | Z95: 180 | AA95: 180
B96: Fasken Martineau DuMoulin LLP - Inv #922460 | C96: 90 | D96: 90 | E96: 90 | F96: 90 | G96: 90 | H96: 90 | I96: 90 | J96: 90 | K96: 90 | L96: 90 | M96: 90 | N96: 90 | O96: 90 | P96: 90 | Q96: 90 | R96: 90 | S96: 90 | T96: 90 | U96: 90 | V96: 90 | W96: 90 | X96: 90 | Y96: 90 | Z96: 90 | AA96: 90
B97: Ontario Energy Board - #CA1516Q2003 | C97: 952.46 | D97: 952.46 | E97: 952.46 | F97: 952.46 | G97: 952.46 | H97: 952.46 | I97: 952.46 | J97: 952.46 | K97: 952.46 | L97: 952.46 | M97: 952.46 | N97: 952.46 | O97: 952.46 | P97: 952.46 | Q97: 952.46 | R97: 952.46 | S97: 952.46 | T97: 952.46 | U97: 952.46 | V97: 952.46 | W97: 952.46 | X97: 952.46 | Y97: 952.46 | Z97: 952.46 | AA97: 952.46
B99: sub-total | C99: =SUM(C92:C98) -> 13802.46 | D99: =SUM(D92:D98) -> 13802.46 | E99: 13802.46 | F99: 13802.46 | G99: 13802.46 | H99: 13802.46 | I99: 13802.46 | J99: 13802.46 | K99: 13802.46 | L99: 13802.46 | M99: 13802.46 | N99: 13802.46 | O99: 13802.46 | P99: 13802.46 | Q99: 13802.46 | R99: 13802.46 | S99: 13802.46 | T99: 13802.46 | U99: 13802.46 | V99: 13802.46 | W99: 13802.46 | X99: 13802.46 | Y99: 13802.46 | Z99: 13802.46 | AA99: 13802.46
B101: DSM Account
B102: Redman/Williams - #IN138280 | C102: 3532.03 | D102: 3532.03 | E102: 3532.03 | F102: 3532.03 | G102: 3532.03 | H102: 3532.03 | I102: 3532.03 | J102: 3532.03 | K102: 3532.03 | L102: 3532.03 | M102: 3532.03 | N102: 3532.03 | O102: 3532.03 | P102: 3532.03 | Q102: 3532.03 | R102: 3532.03 | S102: 3532.03 | T102: 3532.03 | U102: 3532.03 | V102: 3532.03 | W102: 3532.03 | X102: 3532.03 | Y102: 3532.03 | Z102: 3532.03 | AA102: 3532.03
B104: sub-total | C104: =SUM(C102:C103) -> 3532.03 | D104: =SUM(D102:D103) -> 3532.03 | E104: 3532.03 | F104: 3532.03 | G104: 3532.03 | H104: 3532.03 | I104: 3532.03 | J104: 3532.03 | K104: 3532.03 | L104: 3532.03 | M104: 3532.03 | N104: 3532.03 | O104: 3532.03 | P104: 3532.03 | Q104: 3532.03 | R104: 3532.03 | S104: 3532.03 | T104: 3532.03 | U104: 3532.03 | V104: 3532.03 | W104: 3532.03 | X104: 3532.03 | Y104: 3532.03 | Z104: 3532.03 | AA104: 3532.03
B106: Application for Service - put to capital cost of Pipeline
B107: Osler, Hoskin & Harcourt LLP - #11842664 | C107: 0 | D107: 0 | E107: 50080.58 | F107: 50080.58 | G107: 50080.58 | H107: 50080.58 | I107: 50080.58 | J107: 50080.58 | K107: 50080.58 | L107: 50080.58 | M107: 0 | N107: 0 | O107: 0 | P107: 0 | Q107: 0 | R107: 0 | S107: 0 | T107: 0 | U107: 0 | V107: 0 | W107: 0 | X107: 0 | Y107: 0 | Z107: 0 | AA107: 0
B108: Osler, Hoskin & Harcourt LLP - #11850956 | C108: 0 | D108: 0 | E108: 0 | F108: 15217.94 | G108: 15217.94 | H108: 15217.94 | I108: 15217.94 | J108: 15217.94 | K108: 15217.94 | L108: 15217.94 | M108: 0 | N108: 0 | O108: 0 | P108: 0 | Q108: 0 | R108: 0 | S108: 0 | T108: 0 | U108: 0 | V108: 0 | W108: 0 | X108: 0 | Y108: 0 | Z108: 0 | AA108: 0
B109: John A. Gandry - #November 2015 | C109: 0 | D109: 0 | E109: 0 | F109: 275 | G109: 275 | H109: 275 | I109: 275 | J109: 275 | K109: 275 | L109: 275 | M109: 0 | N109: 0 | O109: 0 | P109: 0 | Q109: 0 | R109: 0 | S109: 0 | T109: 0 | U109: 0 | V109: 0 | W109: 0 | X109: 0 | Y109: 0 | Z109: 0 | AA109: 0
B110: Osler, Hoskin & Harcourt LLP - #11860762 | C110: 0 | D110: 0 | E110: 0 | F110: 0 | G110: 774.5 | H110: 774.5 | I110: 774.5 | J110: 774.5 | K110: 774.5 | L110: 774.5 | M110: 0 | N110: 0 | O110: 0 | P110: 0 | Q110: 0 | R110: 0 | S110: 0 | T110: 0 | U110: 0 | V110: 0 | W110: 0 | X110: 0 | Y110: 0 | Z110: 0 | AA110: 0
B111: Osler, Hoskin & Harcourt LLP - #11869746 | C111: 0 | D111: 0 | E111: 0 | F111: 0 | G111: 0 | H111: 2248.65 | I111: 2248.65 | J111: 2248.65 | K111: 2248.65 | L111: 2248.65 | M111: 0 | N111: 0 | O111: 0 | P111: 0 | Q111: 0 | R111: 0 | S111: 0 | T111: 0 | U111: 0 | V111: 0 | W111: 0 | X111: 0 | Y111: 0 | Z111: 0 | AA111: 0
B112: Osler, Hoskin & Harcourt LLP - #1168788 | C112: 0 | D112: 0 | E112: 0 | F112: 0 | G112: 0 | H112: 0 | I112: 13393.96 | J112: 13393.96 | K112: 13393.96 | L112: 13393.96 | M112: 0 | N112: 0 | O112: 0 | P112: 0 | Q112: 0 | R112: 0 | S112: 0 | T112: 0 | U112: 0 | V112: 0 | W112: 0 | X112: 0 | Y112: 0 | Z112: 0 | AA112: 0
B113: Osler, Hoskin & Harcourt LLP - #11886676 | C113: 0 | D113: 0 | E113: 0 | F113: 0 | G113: 0 | H113: 0 | I113: 0 | J113: 2723.41 | K113: 2723.41 | L113: 2723.41 | M113: 0 | N113: 0 | O113: 0 | P113: 0 | Q113: 0 | R113: 0 | S113: 0 | T113: 0 | U113: 0 | V113: 0 | W113: 0 | X113: 0 | Y113: 0 | Z113: 0 | AA113: 0
B114: Osler, Hoskin & Harcourt LLP - #11899047 | C114: 0 | D114: 0 | E114: 0 | F114: 0 | G114: 0 | H114: 0 | I114: 0 | J114: 0 | K114: 2970.9 | L114: 2970.9 | M114: 0 | N114: 0 | O114: 0 | P114: 0 | Q114: 0 | R114: 0 | S114: 0 | T114: 0 | U114: 0 | V114: 0 | W114: 0 | X114: 0 | Y114: 0 | Z114: 0 | AA114: 0
B115: Lenczner Slaught Royce Smith Griffin LLP - Inv #40668 | C115: 0 | D115: 0 | E115: 0 | F115: 0 | G115: 0 | H115: 0 | I115: 0 | J115: 0 | K115: 5435.11 | L115: 5435.11 | M115: 0 | N115: 0 | O115: 0 | P115: 0 | Q115: 0 | R115: 0 | S115: 0 | T115: 0 | U115: 0 | V115: 0 | W115: 0 | X115: 0 | Y115: 0 | Z115: 0 | AA115: 0
B116: Osler, Hoskin & Harcourt LLP - #11908625 | C116: 0 | D116: 0 | E116: 0 | F116: 0 | G116: 0 | H116: 0 | I116: 0 | J116: 0 | K116: 0 | L116: 2807.7 | M116: 0 | N116: 0 | O116: 0 | P116: 0 | Q116: 0 | R116: 0 | S116: 0 | T116: 0 | U116: 0 | V116: 0 | W116: 0 | X116: 0 | Y116: 0 | Z116: 0 | AA116: 0
B118: sub-total | C118: =SUM(C107:C117) -> 0 | D118: 0 | E118: 50080.58 | F118: 65573.52 | G118: 66348.02 | H118: 68596.67 | I118: 81990.63 | J118: 84714.04 | K118: 93120.05 | L118: 95927.75 | M118: 0 | N118: 0 | O118: 0 | P118: 0 | Q118: 0 | R118: 0 | S118: 0 | T118: 0 | U118: 0 | V118: 0 | W118: 0 | X118: 0 | Y118: 0 | Z118: 0 | AA118: 0
B119: Other REDA Items
B121: Cap & Trade Deferral (moved to C&T in 2017) | D121: 0 | E121: 0 | F121: 0 | G121: 0 | H121: 0 | I121: 0 | J121: 0 | K121: 0 | L121: 0 | M121: 0 | N121: 4290 | O121: 6517.5 | P121: 0 | Q121: 0 | R121: 0 | S121: 0 | T121: 0 | U121: 0 | V121: 0 | W121: 0 | X121: 0 | Y121: 0 | Z121: 0 | AA121: 0
B122: EB-2015-0238 Distribution Gas Supply Planning - OEB - Inv #CA1617Q4003 | C122: 0 | D122: 0 | E122: 0 | F122: 0 | G122: 0 | H122: 0 | I122: 0 | J122: 0 | K122: 0 | L122: 0 | M122: 0 | N122: 0 | O122: 0 | P122: 0 | Q122: 0 | R122: 0 | AA122: 119
B123: EB=2014-0255 Corporate Governance - OEB - Inv #CA1718Q1003 | C123: 0 | D123: 0 | E123: 0 | F123: 0 | G123: 0 | H123: 0 | I123: 0 | J123: 0 | K123: 0 | L123: 0 | M123: 0 | N123: 0 | O123: 0 | P123: 0 | Q123: 0 | R123: 0 | V123: 106 | W123: 106 | X123: 106 | Y123: 106 | Z123: 106 | AA123: 106
B124: EB-2016-0004 OEB - Inv #CA1718Q1003 | C124: 0 | D124: 0 | E124: 0 | F124: 0 | G124: 0 | H124: 0 | I124: 0 | J124: 0 | K124: 0 | L124: 0 | M124: 0 | N124: 0 | O124: 0 | P124: 0 | Q124: 0 | R124: 0 | V124: 2817 | W124: 2817 | X124: 2817 | Y124: 2817 | Z124: 2817 | AA124: 2817
B125: EB-2015-0245 - OEB - Inv #CA1718Q3003 | C125: 0 | D125: 0 | E125: 0 | F125: 0 | G125: 0 | H125: 0 | I125: 0 | J125: 0 | K125: 0 | L125: 0 | M125: 0 | N125: 0 | O125: 0 | P125: 0 | Q125: 0 | R125: 0 | S125: 0 | T125: 0 | U125: 0 | V125: 0 | W125: 0 | X125: 0 | Y125: 0 | Z125: 0 | AA125: 0
B126: EB-2016-0359 - OEB - Inv #CA1718Q3003 | C126: 0 | D126: 0 | E126: 0 | F126: 0 | G126: 0 | H126: 0 | I126: 0 | J126: 0 | K126: 0 | L126: 0 | M126: 0 | N126: 0 | O126: 0 | P126: 0 | Q126: 0 | R126: 0 | S126: 0 | T126: 0 | U126: 0 | V126: 0 | W126: 0 | X126: 0 | Y126: 0 | Z126: 0 | AA126: 0
B127: DSM Evaluation Technical Committee - OEB - Inv #CA1718Q2003 | C127: 0 | D127: 0 | E127: 0 | F127: 0 | G127: 0 | H127: 0 | I127: 0 | J127: 0 | K127: 0 | L127: 0 | M127: 0 | N127: 0 | O127: 0 | P127: 0 | Q127: 0 | R127: 0 | Y127: 192 | Z127: 192 | AA127: 192
B128: Cyber Security Framework - OEB - Inv #CA1718Q2003 | C128: 0 | D128: 0 | E128: 0 | F128: 0 | G128: 0 | H128: 0 | I128: 0 | J128: 0 | K128: 0 | L128: 0 | M128: 0 | N128: 0 | O128: 0 | P128: 0 | Q128: 0 | R128: 0 | Y128: 879 | Z128: 879 | AA128: 879
B130: sub-total | C130: =SUM(C122:C129) -> 0 | D130: =SUM(D121:D129) -> 0 | E130: =SUM(E121:E129) -> 0 | F130: 0 | G130: 0 | H130: 0 | I130: 0 | J130: 0 | K130: 0 | L130: 0 | M130: 0 | N130: 4290 | O130: 6517.5 | P130: 0 | Q130: 0 | R130: 0 | S130: 0 | T130: 0 | U130: 0 | V130: 2923 | W130: 2923 | X130: 2923 | Y130: 3994 | Z130: 3994 | AA130: 4113
B132: Total REDA | C132: =C130+C104+C99+C89+C80+C56+C47+C29+C19+C10+C118 -> 166923.69 | D132: 166923.69 | E132: 217004.27 | F132: 232497.21 | G132: 234885.41 | H132: 239079.11 | I132: 252473.07 | J132: 255196.48 | K132: 233862.02 | L132: 236669.72 | M132: 140741.97 | N132: 145031.97 | O132: 154710.53 | P132: =P130+P104+P99+P89+P80+P56+P47+P29+P19 -> 148412.03 | Q132: 148412.03 | R132: 148412.03 | S132: 148412.03 | T132: 148412.03 | U132: 148412.03 | V132: 151335.03 | W132: 151335.03 | X132: 151335.03 | Y132: 152406.03 | Z132: 152406.03 | AA132: 152525.03
B134: REDA Interest Expense | C134: Interest Rate | D134: 0.011
B135: NRG Calculated | D135: 0 | E135: =E136-D136 -> 0 | F135: =F136-E136 -> 0 | G135: 0 | H135: 0 | I135: 0 | J135: 0 | K135: 0 | L135: 0 | M135: -32839.61 | N135: 123.43 | O135: 119.45 | P135: 123.43 | Q135: 178.58 | R135: 135.34 | S135: 135.34 | T135: 122.24 | U135: 135.34 | V135: 130.97 | W135: 135.34 | X135: 130.97 | Y135: 135.34 | Z135: 135.34 | AA135: 130.97
B136: REDA Interest Balance | C136: 36717.67 | D136: 36717.67 | E136: 36717.67 | F136: 36717.67 | G136: 36717.67 | H136: 36717.67 | I136: 36717.67 | J136: 36717.67 | K136: 36717.67 | L136: 36717.67 | M136: 3878.06 | N136: 4001.49 | O136: 4120.94 | P136: 4244.37 | Q136: 4422.95 | R136: 4558.29 | S136: 4693.63 | T136: 4815.87 | U136: 4951.21 | V136: 5082.18 | W136: 5217.52 | X136: 5348.49 | Y136: 5483.83 | Z136: 5619.17 | AA136: 5750.14
B140: =MID(CELL("filename",A2),FIND("]",CELL("filename",A2))+1,255) -> A1.2 REDA

Sheet A1.3 PGTVA
A1: EPCOR Natural Gas Limited Partnership
A2: Purchased Gas Transportation Variance Account Calculation
B4: TO MATCH
B5: OEB AUDIT REPORT, March 2017
B6: 2015 | C6: 2015 | D6: 2015 | E6: 2015 | F6: 2016 | G6: 2016 | H6: 2016 | I6: 2016 | J6: 2016 | K6: 2016 | L6: 2016 | M6: 2016 | N6: 2016 | O6: 2016 | P6: 2016 | Q6: 2016 | R6: 2016 | S6: 2017 | T6: 2017 | U6: 2017 | V6: 2017 | W6: 2017 | X6: 2017 | Y6: 2017 | Z6: 2017 | AA6: 2017
B7: TOTAL | C7: OCT | D7: NOV | E7: DEC | F7: JAN | G7: FEB | H7: MAR | I7: APR | J7: MAY | K7: JUN | L7: JUL | M7: AUG | N7: SEP | O7: TOTAL | P7: OCT | Q7: NOV | R7: DEC | S7: JAN | T7: FEB | U7: MAR | V7: APR | W7: MAY | X7: JUN | Y7: JUL | Z7: AUG | AA7: SEP
A8: PGTVA
A9: Transportation Cost
A10: Union Gas - Delivery | C10: 4756.03 | D10: 4951.28 | E10: 4812.61 | F10: 6996.97 | G10: 5950.61 | H10: 4564.12 | I10: 3463.58 | J10: 1521.24 | K10: 857.86 | L10: 825.88 | M10: 990.78 | N10: 1560.44 | O10: =SUM(C10:N10) -> 41251.4 | P10: 4119.87 | Q10: 5246.96 | R10: 7028.36 | S10: 136822.88 | T10: 107245.26 | U10: 122305.27 | V10: 62695.3 | W10: 53568.42 | X10: 31945.95 | Y10: -5428.87 | Z10: 1074.71 | AA10: 40858.73
A11: Union Gas - Adjmts | C11: 16292.03 | D11: 0 | E11: 0 | F11: 1634.18 | G11: 100.98 | H11: 0 | I11: 0 | J11: 0 | K11: 0 | L11: 0 | M11: 0 | N11: 0 | O11: 18027.19 | P11: -1147.44 | Q11: 0 | R11: 0 | S11: -126361.6 | T11: -98725.06 | U11: -113274.38 | V11: -57937.19 | W11: -49502.97 | X11: -29521.49 | Y11: 5034.91 | Z11: -951.25 | AA11: -37694.87
A12: Union Gas - Demand | C12: 27300.28 | D12: 27300.28 | E12: 27300.28 | F12: 29306.39 | G12: 29306.39 | H12: 29306.39 | I12: 29306.39 | J12: 29306.39 | K12: 29306.39 | L12: 29306.39 | M12: 29306.39 | N12: 29306.39 | O12: =SUM(C12:N12) -> 345658.35 | P12: 29306.39 | Q12: 33229.02 | R12: 33229.02 | S12: 42533.16 | T12: 42533.16 | U12: 42533.16 | V12: 42533.16 | W12: 42533.16 | X12: 42533.16 | Y12: 42533.16 | Z12: 42533.16 | AA12: 42533.16
A13: Total Transportation Cost | C13: =SUM(C10:C12) -> 48348.34 | D13: 32251.56 | E13: 32112.89 | F13: 37937.54 | G13: 35357.98 | H13: 33870.51 | I13: 32769.97 | J13: 30827.63 | K13: 30164.25 | L13: 30132.27 | M13: 30297.17 | N13: 30866.83 | O13: 404936.94 | P13: 32278.82 | Q13: 38475.98 | R13: 40257.38 | S13: 52994.44 | T13: 51053.36 | U13: 51564.05 | V13: 47291.27 | W13: 46598.61 | X13: 44957.62 | Y13: 42139.2 | Z13: 42656.62 | AA13: 45697.02
A14: Volumes Transported (m3) | C14: 2508653.2 | D14: 2606055.2 | E14: 2541817.3 | F14: 4089316.8 | G14: 3499077.3 | H14: 2712688.2 | I14: 2269700.9 | J14: 1005487.3 | K14: 526943.1 | L14: 484672.6 | M14: 705101.8 | N14: 1100143 | P14: 2325858.507 | Q14: 2901490.5 | R14: 3844007.2 | S14: 3958131.3 | T14: 3100332.4 | U14: 3561919.5 | V14: 1880789.9 | W14: 1637092.6 | X14: 1022493.3 | Y14: -14133.3 | Z14: 159937.5 | AA14: 1263122.3
A15: Average Cost ($/m3) | C15: =C13/C14 -> 0.01927262804 | D15: 0.01237562428 | E15: 0.01263383092 | F15: 0.009277231835 | G15: 0.01010494395 | H15: 0.01248595766 | I15: 0.01443801252 | J15: 0.03065939271 | K15: 0.05724384663 | L15: 0.06217035995 | M15: 0.04296850469 | N15: 0.02805710712 | P15: =P13/P14 -> 0.0138782389 | Q15: 0.01326076374 | R15: 0.01047276394 | S15: 0.01338875241 | T15: 0.01646706011 | U15: 0.0144764782 | V15: 0.0251443662 | W15: 0.02846424814 | X15: 0.04396862063 | Y15: -2.981554202 | Z15: 0.2667080578 | AA15: 0.03617782696
A16: Reference Price - corrected per EB-2017-0215 | C16: 0.018339 | D16: 0.018339 | E16: 0.018339 | F16: 0.018339 | G16: 0.018339 | H16: 0.018339 | I16: 0.018339 | J16: 0.018339 | K16: 0.018339 | L16: 0.018339 | M16: 0.018339 | N16: 0.018339 | P16: =N16 -> 0.018339 | Q16: =P16 -> 0.018339 | R16: =Q16 -> 0.018339 | S16: 0.018339 | T16: 0.018339 | U16: 0.018339 | V16: 0.018339 | W16: 0.018339 | X16: 0.018339 | Y16: 0.018339 | Z16: 0.018339 | AA16: 0.018339
A17: Rate Difference | C17: =C16-C15 -> -0.000933628038 | D17: 0.005963375723 | E17: 0.005705169079 | F17: 0.009061768165 | G17: 0.008234056048 | H17: 0.005853042344 | I17: 0.003900987485 | J17: -0.01232039271 | K17: -0.03890484663 | L17: -0.04383135995 | M17: -0.02462950469 | N17: -0.009718107122 | P17: =P16-P15 -> 0.004460761102 | Q17: 0.005078236265 | R17: 0.007866236057 | S17: 0.004950247585 | T17: 0.001871939887 | U17: 0.003862521798 | V17: -0.006805366205 | W17: -0.01012524814 | X17: -0.02562962063 | Y17: 2.999893202 | Z17: -0.2483690578 | AA17: -0.01783882696
A19: PGTVA | C19: =C17*C14 -> -2342.148965 | D19: 15540.88631 | E19: 14501.49746 | F19: 37056.4408 | G19: 28811.5986 | H19: 15877.4789 | I19: 8854.074805 | J19: -12387.99841 | K19: -20500.64049 | L19: -21243.85919 | M19: -17366.30809 | N19: -10691.30752 | O19: =SUM(C19:N19) -> 36109.71422 | P19: =P17*P14 -> 10375.09916 | Q19: 14734.45428 | R19: 30237.86804 | S19: 19593.72991 | T19: 5803.635884 | U19: 13757.99171 | V19: -12799.46402 | W19: -16575.96881 | X19: -26206.11537 | Y19: -42398.39059 | Z19: -39723.52619 | AA19: -22532.62014
A20: Balance | B20: 428722.04 | C20: =B20+C19 -> 426379.891 | D20: =C20+D19 -> 441920.7773 | E20: 456422.2748 | F20: 493478.7156 | G20: 522290.3142 | H20: 538167.7931 | I20: 547021.8679 | J20: 534633.8695 | K20: 514133.229 | L20: 492889.3698 | M20: 475523.0617 | N20: 464831.7542 | O20: =B20+O19 -> 464831.7542 | P20: =O20+P19 -> 475206.8534 | Q20: 489941.3077 | R20: 520179.1757 | S20: 539772.9056 | T20: 545576.5415 | U20: 559334.5332 | V20: 546535.0692 | W20: 529959.1004 | X20: 503752.985 | Y20: 461354.5944 | Z20: 421631.0682 | AA20: 399098.4481
A21: PGTVA Interest
A22: Interest rate | C22: 0.011 | D22: =C22 -> 0.011 | E22: =D22 -> 0.011 | F22: 0.011 | G22: 0.011 | H22: 0.011 | I22: 0.011 | J22: 0.011 | K22: 0.011 | L22: 0.011 | M22: 0.011 | N22: 0.011 | P22: =N22 -> 0.011 | Q22: =P22 -> 0.011 | R22: =Q22 -> 0.011 | S22: 0.011 | T22: 0.011 | U22: 0.011 | V22: 0.011 | W22: 0.011 | X22: 0.011 | Y22: 0.011 | Z22: 0.011 | AA22: 0.011
A23: Interest | C23: =ROUND(B20*C22/12,2) -> 393 | D23: 390.85 | E23: 405.09 | F23: 418.39 | G23: 452.36 | H23: 478.77 | I23: 493.32 | J23: 501.44 | K23: 490.08 | L23: 471.29 | M23: 451.82 | N23: 435.9 | O23: =SUM(C23:N23) -> 5382.31 | P23: =ROUND(O20*P22/12,2) -> 426.1 | Q23: 435.61 | R23: 449.11 | S23: 476.83 | T23: 494.79 | U23: 500.11 | V23: 512.72 | W23: 500.99 | X23: 485.8 | Y23: 461.77 | Z23: 422.91 | AA23: 386.5
A24: Balance | B24: 18886.81 | C24: =B24+C23 -> 19279.81 | D24: 19670.66 | E24: 20075.75 | F24: 20494.14 | G24: 20946.5 | H24: 21425.27 | I24: 21918.59 | J24: 22420.03 | K24: 22910.11 | L24: 23381.4 | M24: 23833.22 | N24: 24269.12 | O24: =B24+O23 -> 24269.12 | P24: =O24+P23 -> 24695.22 | Q24: 25130.83 | R24: 25579.94 | S24: 26056.77 | T24: 26551.56 | U24: 27051.67 | V24: 27564.39 | W24: 28065.38 | X24: 28551.18 | Y24: 29012.95 | Z24: 29435.86 | AA24: 29822.36
A26: Total PGTVA and Interest | B26: =B20+B24 -> 447608.85 | C26: 445659.701 | D26: 461591.4373 | E26: 476498.0248 | F26: 513972.8556 | G26: 543236.8142 | H26: 559593.0631 | I26: 568940.4579 | J26: 557053.8995 | K26: 537043.339 | L26: 516270.7698 | M26: 499356.2817 | N26: 489100.8742 | O26: 489100.8742 | P26: 499902.0734 | Q26: 515072.1377 | R26: 545759.1157 | S26: 565829.6756 | T26: 572128.1015 | U26: 586386.2032 | V26: 574099.4592 | W26: 558024.4804 | X26: 532304.165 | Y26: 490367.5444 | Z26: 451066.9282 | AA26: 428920.8081
A28: PGTVA (IGPC)
A29: Transportation Cost
A30: Union Gas - Delivery IGPC | C30: 12897.99 | D30: 6154.32 | E30: 6979.81 | F30: 6114.8 | G30: 5341.3 | H30: 16138.92 | I30: 10418.93 | J30: 5561.18 | K30: 5396.33 | L30: 5862.08 | M30: 5766.54 | N30: 4717.17 | O30: =SUM(C30:N30) -> 91349.37 | P30: 6792.3 | Q30: 6833.94 | R30: 6828.85 | S30: 125815.77 | T30: 97241.38 | U30: 104438.38 | V30: 113400.04 | W30: 121104.51 | X30: 108862.96 | Y30: 107035.49 | Z30: 109492.75 | AA30: 106248.15
A31: Union Gas - Adjmts IGPC | C31: 17718.3 | D31: -7153.8 | E31: 2738.16 | F31: 597.87 | G31: 769.75 | H31: 0 | I31: -2115.14 | J31: 0 | K31: 0 | L31: 0 | M31: 0 | N31: 0 | O31: 12555.14 | P31: -1663.18 | Q31: 0 | R31: 0 | S31: -116196.09 | T31: -89806.45 | U31: -96453.18 | V31: -104793.81 | W31: -111913.58 | X31: -100601.06 | Y31: -98747.28 | Z31: -101014.26 | AA31: -98020.91
A32: Union Gas - Demand IGPC | C32: 17570.27 | D32: 18489 | E32: 18489 | F32: 19847.62 | G32: 19847.62 | H32: 19847.62 | I32: 19847.62 | J32: 23334.4 | K32: 23334.4 | L32: 23334.4 | M32: 23334.4 | N32: 23334.4 | O32: =SUM(C32:N32) -> 250610.75 | P32: 23334.4 | Q32: 23334.4 | R32: 23334.4 | S32: 29868.05 | T32: 29868.05 | U32: 29868.05 | V32: 29868.05 | W32: 29868.05 | X32: 29868.05 | Y32: 29868.05 | Z32: 29868.05 | AA32: 29868.05
A33: Total Transportation Cost | C33: =SUM(C30:C32) -> 48186.56 | D33: 17489.52 | E33: 28206.97 | F33: 26560.29 | G33: 25958.67 | H33: 35986.54 | I33: 28151.41 | J33: 28895.58 | K33: 28730.73 | L33: 29196.48 | M33: 29100.94 | N33: 28051.57 | O33: 354515.26 | P33: 28463.52 | Q33: 30168.34 | R33: 30163.25 | S33: 39487.73 | T33: 37302.98 | U33: 37853.25 | V33: 38474.28 | W33: 39058.98 | X33: 38129.95 | Y33: 38156.26 | Z33: 38346.54 | AA33: 38095.29
A34: IGPC Volumes Transported (m3) | C34: 2791422.9 | D34: 3048200.7 | E34: 3464668.5 | F34: 3479093.6 | G34: 3010080.9 | H34: 3396853.6 | I34: 3238318.5 | J34: 3415955.5 | K34: 3314698.4 | L34: 3440185.2 | M34: 3384119.1 | N34: 2768291.7 | P34: 3571137.8 | Q34: 3593029.1 | R34: 3590352.4 | S34: 3501886.2 | T34: 2706562.6 | U34: 2906879.8 | V34: 3158247.6 | W34: 3372821.1 | X34: 3031887.6 | Y34: 2976018.7 | Z34: 3044340.4 | AA34: 2954127.6
A35: Actual Price | C35: =ROUND(+(C32+C30+C31)/C34,6) -> 0.017262 | D35: 0.005738 | E35: 0.008141 | F35: 0.007634 | G35: 0.008624 | H35: 0.010594 | I35: 0.008693 | J35: 0.008459 | K35: 0.008668 | L35: 0.008487 | M35: 0.008599 | N35: 0.010133 | P35: =ROUND(+(P32+P30+P31)/P34,6) -> 0.00797 | Q35: 0.008396 | R35: 0.008401 | S35: 0.011276 | T35: 0.013782 | U35: 0.013022 | V35: 0.012182 | W35: 0.011581 | X35: 0.012576 | Y35: 0.012821 | Z35: 0.012596 | AA35: 0.012896
A36: Reference Price - corrected per EB-2017-0215 | C36: 0.009885 | D36: 0.009885 | E36: 0.009885 | F36: 0.009885 | G36: 0.009885 | H36: 0.009885 | I36: 0.009885 | J36: 0.009885 | K36: 0.009885 | L36: 0.009885 | M36: 0.009885 | N36: 0.009885 | P36: =N36 -> 0.009885 | Q36: =M36 -> 0.009885 | R36: =P36 -> 0.009885 | S36: =R36 -> 0.009885 | T36: =S36 -> 0.009885 | U36: 0.009885 | V36: 0.009885 | W36: 0.009885 | X36: 0.009885 | Y36: 0.009885 | Z36: 0.009885 | AA36: 0.009885
A37: Rate Difference | C37: =C36-C35 -> -0.007377 | D37: 0.004147 | E37: 0.001744 | F37: 0.002251 | G37: 0.001261 | H37: -0.000709 | I37: 0.001192 | J37: 0.001426 | K37: 0.001217 | L37: 0.001398 | M37: 0.001286 | N37: -0.000248 | P37: =P36-P35 -> 0.001915 | Q37: 0.001489 | R37: 0.001484 | S37: -0.001391 | T37: -0.003897 | U37: -0.003137 | V37: -0.002297 | W37: -0.001696 | X37: -0.002691 | Y37: -0.002936 | Z37: -0.002711 | AA37: -0.003011
A39: PGTVA (IGPC) | C39: =+C37*C34 -> -20592.32673 | D39: 12640.8883 | E39: 6042.381864 | F39: 7831.439694 | G39: 3795.712015 | H39: -2408.369202 | I39: 3860.075652 | J39: 4871.152543 | K39: 4033.987953 | L39: 4809.37891 | M39: 4351.977163 | N39: -686.5363416 | O39: =SUM(C39:N39) -> 28549.76182 | P39: =+P37*P34 -> 6838.728887 | Q39: 5350.02033 | R39: 5328.082962 | S39: -4871.123704 | T39: -10547.47445 | U39: -9118.881933 | V39: -7254.494737 | W39: -5720.304586 | X39: -8158.809532 | Y39: -8737.590903 | Z39: -8253.206824 | AA39: -8894.878204
A40: Balance | B40: 526067.03 | C40: =B40+C39 -> 505474.7033 | D40: 518115.5916 | E40: 524157.9734 | F40: 531989.4131 | G40: 535785.1251 | H40: 533376.7559 | I40: 537236.8316 | J40: 542107.9841 | K40: 546141.9721 | L40: 550951.351 | M40: 555303.3282 | N40: 554616.7918 | O40: =B40+O39 -> 554616.7918 | P40: =O40+P39 -> 561455.5207 | Q40: 566805.541 | R40: 572133.624 | S40: 567262.5003 | T40: 556715.0258 | U40: 547596.1439 | V40: 540341.6492 | W40: 534621.3446 | X40: 526462.5351 | Y40: 517724.9441 | Z40: 509471.7373 | AA40: 500576.8591
A41: PGTVA (IGPC) Interest
A42: Interest IGPC | C42: =ROUND(B40*C22/12,2) -> 482.23 | D42: 463.35 | E42: 474.94 | F42: 480.48 | G42: 487.66 | H42: 491.14 | I42: 488.93 | J42: 492.47 | K42: 496.93 | L42: 500.63 | M42: 505.04 | N42: 509.03 | O42: =SUM(C42:N42) -> 5872.83 | P42: =ROUND(O40*P22/12,2) -> 508.4 | Q42: 514.67 | R42: 519.57 | S42: 524.46 | T42: 519.99 | U42: 510.32 | V42: 501.96 | W42: 495.31 | X42: 490.07 | Y42: 482.59 | Z42: 474.58 | AA42: 467.02
A43: Balance | B43: 31852.77 | C43: =B43+C42 -> 32335 | D43: 32798.35 | E43: 33273.29 | F43: 33753.77 | G43: 34241.43 | H43: 34732.57 | I43: 35221.5 | J43: 35713.97 | K43: 36210.9 | L43: 36711.53 | M43: 37216.57 | N43: 37725.6 | O43: =B43+O42 -> 37725.6 | P43: =O43+P42 -> 38234 | Q43: 38748.67 | R43: 39268.24 | S43: 39792.7 | T43: 40312.69 | U43: 40823.01 | V43: 41324.97 | W43: 41820.28 | X43: 42310.35 | Y43: 42792.94 | Z43: 43267.52 | AA43: 43734.54
A45: Total PGTVA (IGPC) and Interest | B45: =B40+B43 -> 557919.8 | C45: 537809.7033 | D45: 550913.9416 | E45: 557431.2634 | F45: 565743.1831 | G45: 570026.5551 | H45: 568109.3259 | I45: 572458.3316 | J45: 577821.9541 | K45: 582352.8721 | L45: 587662.881 | M45: 592519.8982 | N45: 592342.3918 | O45: 592342.3918 | P45: 599689.5207 | Q45: 605554.211 | R45: 611401.864 | S45: 607055.2003 | T45: 597027.7158 | U45: 588419.1539 | V45: 581666.6192 | W45: 576441.6246 | X45: 568772.8851 | Y45: 560517.8841 | Z45: 552739.2573 | AA45: 544311.3991
A48: =MID(CELL("filename",A2),FIND("]",CELL("filename",A2))+1,255) -> A1.3 PGTVA
